fUST/lending_fUST_20260411
["ID","MTS","AMOUNT","RATE_DAILY","PERIOD"]
[420239321,1775842258411,-1649.8568,0.00018904,2]
[420239322,1775842258421,-551.27301493,0.00018904,2]
[420239323,1775842258434,-419.62763609,0.00018904,2]
[420239324,1775842258449,-780.77,0.00018904,2]
[420239325,1775842258459,-511.14,0.00018904,2]
[420239326,1775842258478,-480.29270105,0.00018904,2]
[420239327,1775842258488,-500.0,0.00018904,2]
[420239328,1775842258498,-500.0,0.00018904,2]
[420239329,1775842258512,-500.0,0.00018904,2]
[420239330,1775842258523,-1055.18,0.00018904,2]
[420239331,1775842258545,-500.0,0.00018904,2]
[420239332,1775842258555,-2336.22,0.00018904,2]
[420239333,1775842258568,-596.96,0.00018904,2]
[420239334,1775842258582,-500.0,0.00018904,2]
[420239335,1775842258591,-231.3,0.00018904,2]
[420239336,1775842258603,-500.0,0.00018904,2]
[420239337,1775842258622,-500.0,0.00018904,2]
[420239338,1775842258631,-500.0,0.00018904,2]
[420239339,1775842258641,-500.0,0.00018904,2]
[420239340,1775842258657,-1262.09,0.00018904,2]
[420239341,1775842258669,-500.0,0.00018904,2]
[420239342,1775842258678,-500.0,0.00018904,2]
[420239343,1775842258691,-500.0,0.00018904,2]
[420239344,1775842258727,-558.79,0.00018904,2]
[420239345,1775842258745,-500.0,0.00018904,2]
[420239346,1775842258756,-500.0,0.00018904,2]
[420239347,1775842258786,-500.0,0.00018904,2]
[420239348,1775842258796,-517.7,0.00018904,2]
[420239349,1775842258819,-500.0,0.00018904,2]
[420239350,1775842258854,-500.0,0.00018904,2]
[420239351,1775842258864,-500.0,0.00018904,2]
[420239352,1775842258891,-500.0,0.00018904,2]
[420239353,1775842258902,-500.0,0.00018904,2]
[420239354,1775842258915,-500.0,0.00018904,2]
[420239355,1775842258937,-500.0,0.00018904,2]
[420239356,1775842258958,-500.0,0.00018904,2]
[420239357,1775842258971,-172.92553932,0.00018976,22]
[420239358,1775842258983,-200.0,0.00018999,2]
[420239359,1775842258998,-308.48233273,0.00018999,2]
[420239360,1775842259013,-200.0,0.00018999,2]
[420239361,1775842259024,-346604.67067308,0.00019,2]
[420239362,1775842259231,-9818.29628888,0.00019,2]
[420239363,1775842259389,-500.0,0.00016438,2]
[420239364,1775842259399,-261.61884548,0.00016712,2]
[420239365,1775842259422,-238.38115452,0.00016712,2]
[420239366,1775842259439,-500.0,0.00016986,2]
[420239367,1775842259450,-2885.0,0.00017013,2]
[420239368,1775842259461,-453.0,0.00017013,2]
[420239369,1775842259476,-500.0,0.0001726,2]
[420239370,1775842259487,-500.0,0.00017534,2]
[420239371,1775842259505,-6113.8568126,0.00019,2]
[420239372,1775842259524,-500.0,0.00017808,2]
[420239373,1775842259539,-40864.23856167,0.00019,2]
[420239374,1775842259552,-513.62363527,0.00019,2]
[420239841,1775843438820,-5000.0,0.00013023,2]
[420239843,1775843438831,-607.0,0.00013155,2]
[420239845,1775843438851,-1000.0,0.00013699,2]
[420239847,1775843438870,-300.0,0.00015204,2]
[420239849,1775843438885,-4319.8813333,0.00015205,2]
[420239851,1775843438899,-160.0,0.00015461,2]
[420239853,1775843438911,-184.0,0.00015795,2]
[420239855,1775843438923,-441.0,0.00015795,2]
[420239857,1775843438939,-501.74118153,0.00016438,2]
[420239859,1775843438949,-500.0,0.00016438,2]
[420239861,1775843438959,-1217.8335,0.00016438,2]
[420239863,1775843438970,-500.0,0.00016438,2]
[420239865,1775843439003,-1362.79,0.00016438,2]
[420239867,1775843439014,-500.0,0.00016438,2]
[420239870,1775843439040,-500.0,0.00016438,2]
[420239872,1775843439049,-615.52,0.00016438,2]
[420239874,1775843439066,-500.0,0.00016438,2]
[420239876,1775843439087,-500.0,0.00016438,2]
[420239878,1775843439097,-500.0,0.00016438,2]
[420239879,1775843439106,-500.0,0.00016438,2]
[420239882,1775843439126,-191.0,0.00016438,2]
[420239884,1775843439146,-500.0,0.00016438,2]
[420239886,1775843439158,-500.0,0.00016438,2]
[420239888,1775843439171,-500.0,0.00016438,2]
[420239890,1775843439187,-500.0,0.00016438,2]
[420239892,1775843439196,-500.0,0.00016438,2]
[420239894,1775843439211,-736.21,0.00016438,2]
[420239895,1775843439232,-500.0,0.00016438,2]
[420239897,1775843439241,-500.0,0.00016438,2]
[420239899,1775843439255,-500.0,0.00016438,2]
[420239901,1775843439277,-500.0,0.00016438,2]
[420239903,1775843439293,-500.0,0.00016438,2]
[420239905,1775843439303,-500.0,0.00016438,2]
[420239907,1775843439336,-500.0,0.00016438,2]
[420239909,1775843439346,-500.0,0.00016438,2]
[420239911,1775843439364,-500.0,0.00016438,2]
[420239914,1775843439391,-500.0,0.00016438,2]
[420239916,1775843439401,-500.0,0.00016438,2]
[420239918,1775843439430,-500.0,0.00016438,2]
[420239919,1775843439456,-500.0,0.00016438,2]
[420239921,1775843439466,-500.0,0.00016438,2]
[420239923,1775843439476,-500.0,0.00016438,2]
[420239926,1775843439508,-500.0,0.00016438,2]
[420239927,1775843439518,-500.0,0.00016438,2]
[420239930,1775843439544,-6543.2227583,0.000166,2]
[420239932,1775843439572,-2214.0,0.000166,2]
[420239934,1775843439585,-300.1288417,0.000166,2]
[420239936,1775843439595,-1092.211674,0.000166,2]
[420239938,1775843439615,-235.38391779,0.00016611,2]
[420239940,1775843439639,-372.66441076,0.00016611,2]
[420239942,1775843439651,-127.33558924,0.00016611,2]
[420239944,1775843439672,-257.96446096,0.00016611,2]
[420239946,1775843439687,-500.0,0.00016611,2]
[420239948,1775843439697,-188.41139204,0.00016611,2]
[420239950,1775843439711,-268.98115405,0.00016611,2]
[420239952,1775843439739,-500.0,0.00016611,2]
[420239954,1775843439773,-500.0,0.00016611,2]
[420239956,1775843439783,-500.0,0.00016611,2]
[420239958,1775843439802,-500.0,0.00016611,2]
[420239960,1775843439827,-164.21593292,0.00016611,2]
[420239962,1775843439837,-500.0,0.00016611,2]
[420239964,1775843439860,-500.0,0.00016611,2]
[420239967,1775843439886,-500.0,0.00016611,2]
[420239969,1775843439902,-500.0,0.00016611,2]
[420239971,1775843439921,-438.28680783,0.00016611,2]
[420239973,1775843439943,-2617.36202322,0.00016612,2]
[420239975,1775843439952,-22451.38069065,0.00016612,2]
[420239989,1775843441419,-511.0,0.00016438,2]
[420239990,1775843441429,-15504.54180994,0.00016612,2]
[420240007,1775843443877,-7807.39126634,0.00016612,2]
[420240010,1775843443899,-1357.39668019,0.00016612,2]
[420240011,1775843443910,-1452981.42821081,0.00016612,2]
[420240013,1775843443952,-5000.0,0.00016446,2]
[420240015,1775843443966,-3008.41106366,0.00016612,2]
[420240118,1775844043122,-1207.66448205,0.00012668,2]
[420240119,1775844043144,-3792.33551795,0.00012668,2]
[420240125,1775844072478,-1207.66448205,0.00012925,2]
[420240137,1775844160771,122489.12335415,7.6e-05,2]
[420240333,1775844639154,-800.0,0.00012668,2]
[420240374,1775844641458,-310.35409388,0.00012668,2]
[420240380,1775844641569,-1219.91665635,0.00012668,2]
[420240388,1775844644015,-2669.72924977,0.00012668,2]
[420240389,1775844644025,-452.46585091,0.00013055,2]
[420240390,1775844644059,-1000.0,0.00013699,2]
[420240391,1775844644068,-177.0,0.00014926,2]
[420240392,1775844644078,-160.0,0.00015,2]
[420240393,1775844644097,-247.495881,0.00015068,2]
[420240394,1775844644110,-867.79635707,0.00016238,2]
[420240421,1775844646894,-632.17863504,0.00016238,2]
[420240423,1775844646908,-282.49219823,0.00016311,2]
[420240425,1775844646918,-213.99788396,0.00016311,2]
[420240427,1775844646929,-500.0,0.00016311,2]
[420240429,1775844646962,-500.0,0.00016311,2]
[420240431,1775844646972,-500.0,0.00016311,2]
[420240433,1775844646982,-164.95115305,0.00016311,2]
[420240435,1775844646995,-456.80076548,0.00016311,2]
[420240438,1775844647005,-500.0,0.00016311,2]
[420240439,1775844647015,-500.0,0.00016311,2]
[420240441,1775844647025,-500.0,0.00016311,2]
[420240444,1775844647039,-258.39485537,0.00016312,2]
[420240511,1775845831943,-322.78571426,0.00013027,2]
[420240700,1775845869794,-808.01698448,0.00013027,2]
[420240737,1775847032212,-650.76184703,0.00013562,2]
[420240742,1775847032247,-284.41047151,0.00013562,2]
[420240910,1775847043316,-4064.82768146,0.00013562,2]
[420240911,1775847043368,-156.0,0.00013699,2]
[420240913,1775847043391,-1000.0,0.00013699,2]
[420240914,1775847043403,-373.2511322,0.00013896,2]
[420240915,1775847043412,-1491.51152429,0.00013896,2]
[420240916,1775847043468,-255.0,0.00013993,2]
[420240917,1775847043495,-300.0,0.00013993,2]
[420240918,1775847043504,-1312.47811814,0.00013994,2]
[420240919,1775847043515,-510.3,0.00014093,2]
[420240920,1775847043535,-500.79516122,0.00014093,2]
[420240921,1775847043552,-505.62477229,0.00014093,2]
[420240922,1775847043562,-501.29880181,0.00014093,2]
[420240923,1775847043572,-500.0,0.00014093,2]
[420240924,1775847043587,-128.91280859,0.00014093,2]
[420240939,1775847046322,-371.08719141,0.00014093,2]
[420240940,1775847046335,-500.0,0.00014093,2]
[420240941,1775847046350,-500.0,0.00014093,2]
[420240942,1775847046366,-1231.41,0.00014093,2]
[420240943,1775847046378,-500.0,0.00014093,2]
[420240944,1775847046396,-515.19,0.00014093,2]
[420240945,1775847046424,-500.0,0.00014093,2]
[420240946,1775847046435,-500.0,0.00014093,2]
[420240947,1775847046465,-500.0,0.00014093,2]
[420240948,1775847046479,-500.0,0.00014093,2]
[420240949,1775847046522,-537.95,0.00014093,2]
[420240950,1775847046542,-500.0,0.00014093,2]
[420240951,1775847046558,-500.0,0.00014093,2]
[420240952,1775847046572,-579.77,0.00014093,2]
[420240953,1775847046593,-500.0,0.00014093,2]
[420240954,1775847046615,-500.0,0.00014093,2]
[420240955,1775847046632,-500.0,0.00014093,2]
[420240956,1775847046648,-500.0,0.00014093,2]
[420240957,1775847046687,-648.37,0.00014093,2]
[420240958,1775847046705,-500.0,0.00014093,2]
[420240959,1775847046724,-552.89487883,0.00014093,2]
[420240960,1775847046736,-500.0,0.00014093,2]
[420240961,1775847046749,-283.91807415,0.00014093,2]
[420240962,1775847046769,-216.08192585,0.00014093,2]
[420240963,1775847046779,-500.88134935,0.00014093,2]
[420240964,1775847046790,-500.0,0.00014093,2]
[420240965,1775847046805,-500.0,0.00014093,2]
[420240966,1775847046819,-500.0,0.00014093,2]
[420240967,1775847046829,-500.77896907,0.00014093,2]
[420240968,1775847046838,-500.0,0.00014093,2]
[420240969,1775847046850,-500.0,0.00014093,2]
[420240970,1775847046861,-500.0,0.00014093,2]
[420240971,1775847046871,-500.0,0.00014093,2]
[420240972,1775847046880,-500.68270351,0.00014093,2]
[420240973,1775847046891,-500.61110105,0.00014093,2]
[420240974,1775847046903,-572.41923129,0.00014093,2]
[420240975,1775847046914,-445.0,0.00014094,2]
[420240976,1775847046924,-500.0,0.00014094,2]
[420240977,1775847046937,-500.0,0.00014094,2]
[420240978,1775847046948,-604.32,0.00014094,2]
[420240979,1775847046959,-500.0,0.00014094,2]
[420240980,1775847046982,-500.0,0.00014094,2]
[420240981,1775847046991,-502.44324979,0.00014094,2]
[420240982,1775847047011,-500.84097635,0.00014094,2]
[420240983,1775847047021,-500.0,0.00014094,2]
[420240984,1775847047031,-500.0,0.00014094,2]
[420240985,1775847047046,-502.45057877,0.00014094,2]
[420240986,1775847047070,-500.85064786,0.00014094,2]
[420240987,1775847047080,-500.0,0.00014094,2]
[420240988,1775847047090,-500.0,0.00014094,2]
[420240989,1775847047109,-500.0,0.00014094,2]
[420240990,1775847047119,-503.81202754,0.00014094,2]
[420240991,1775847047131,-500.0,0.00014094,2]
[420240992,1775847047155,-500.0,0.00014094,2]
[420240993,1775847047165,-500.0,0.00014094,2]
[420240994,1775847047174,-503.10638939,0.00014094,2]
[420240995,1775847047183,-507.74114023,0.00014094,2]
[420240996,1775847047214,-502.29457048,0.00014094,2]
[420240997,1775847047224,-1029.54,0.00014094,2]
[420240998,1775847047234,-326.92451913,0.00014094,2]
[420240999,1775847047274,-173.07548087,0.00014094,2]
[420241000,1775847047284,-576.12,0.00014094,2]
[420241001,1775847047293,-500.0,0.00014094,2]
[420241002,1775847047311,-500.0,0.00014094,2]
[420241003,1775847047321,-500.0,0.00014094,2]
[420241004,1775847047339,-500.0,0.00014094,2]
[420241005,1775847047351,-500.0,0.00014094,2]
[420241006,1775847047370,-582.37945402,0.00014094,2]
[420241010,1775847624312,-173.66604862,0.0001,2]
[420241011,1775847624348,-271.47673474,0.0001,2]
[420241012,1775847625048,724.71443328,9.703e-05,2]
[420241014,1775847724830,73181.98819748,7.6e-05,2]
[420241045,1775848107701,400.0,8.093e-05,2]
[420241046,1775848108330,400.0,8.093e-05,2]
[420241047,1775848109003,400.0,8.093e-05,2]
[420241048,1775848109669,400.0,8.093e-05,2]
[420241049,1775848110383,400.0,8.093e-05,2]
[420241050,1775848111075,400.0,8.093e-05,2]
[420241051,1775848111765,400.0,8.093e-05,2]
[420241052,1775848112494,400.0,8.093e-05,2]
[420241053,1775848113191,400.0,8.093e-05,2]
[420241054,1775848113873,400.0,8.093e-05,2]
[420241055,1775848114596,400.0,8.093e-05,2]
[420241056,1775848115266,400.0,8.093e-05,2]
[420241057,1775848116432,400.0,8.093e-05,2]
[420241058,1775848116917,400.0,8.093e-05,2]
[420241059,1775848120134,400.0,8.093e-05,2]
[420241060,1775848120497,400.0,8.093e-05,2]
[420241061,1775848121145,400.0,8.093e-05,2]
[420241062,1775848121849,400.0,8.093e-05,2]
[420241063,1775848122580,400.0,8.093e-05,2]
[420241064,1775848123240,400.0,8.093e-05,2]
[420241065,1775848123925,400.0,8.093e-05,2]
[420241066,1775848124676,400.0,8.093e-05,2]
[420241067,1775848125330,400.0,8.093e-05,2]
[420241068,1775848126037,400.0,8.093e-05,2]
[420241069,1775848126786,400.0,8.093e-05,2]
[420241070,1775848127502,400.0,8.093e-05,2]
[420241071,1775848128216,400.0,8.093e-05,2]
[420241072,1775848128853,400.0,8.093e-05,2]
[420241073,1775848129547,400.0,8.093e-05,2]
[420241074,1775848130267,400.0,8.093e-05,2]
[420241075,1775848130943,400.0,8.093e-05,2]
[420241076,1775848131636,400.0,8.093e-05,2]
[420241077,1775848132347,400.0,8.093e-05,2]
[420241078,1775848133070,400.0,8.093e-05,2]
[420241079,1775848133734,400.0,8.093e-05,2]
[420241080,1775848134442,400.0,8.093e-05,2]
[420241081,1775848135159,400.0,8.093e-05,2]
[420241082,1775848135814,400.0,8.093e-05,2]
[420241083,1775848136566,400.0,8.093e-05,2]
[420241084,1775848137273,400.0,8.093e-05,2]
[420241085,1775848138205,400.0,8.093e-05,2]
[420241086,1775848138633,400.0,8.093e-05,2]
[420241087,1775848139355,400.0,8.093e-05,2]
[420241088,1775848140031,400.0,8.093e-05,2]
[420241089,1775848140750,400.0,8.093e-05,2]
[420241090,1775848141456,400.0,8.093e-05,2]
[420241091,1775848142172,400.0,8.093e-05,2]
[420241092,1775848142871,400.0,8.093e-05,2]
[420241093,1775848143540,400.0,8.093e-05,2]
[420241094,1775848144284,400.0,8.093e-05,2]
[420241095,1775848144977,400.0,8.093e-05,2]
[420241096,1775848145786,400.0,8.093e-05,2]
[420241097,1775848146371,400.0,8.093e-05,2]
[420241098,1775848147068,400.0,8.093e-05,2]
[420241099,1775848147731,400.0,8.093e-05,2]
[420241100,1775848148488,400.0,8.093e-05,2]
[420241101,1775848149142,400.0,8.093e-05,2]
[420241102,1775848149887,400.0,8.093e-05,2]
[420241103,1775848150605,400.0,8.093e-05,2]
[420241104,1775848151260,400.0,8.093e-05,2]
[420241105,1775848151948,400.0,8.093e-05,2]
[420241106,1775848152664,400.0,8.093e-05,2]
[420241107,1775848153367,400.0,8.093e-05,2]
[420241108,1775848154079,400.0,8.093e-05,2]
[420241109,1775848154846,400.0,8.093e-05,2]
[420241110,1775848155538,400.0,8.093e-05,2]
[420241111,1775848156143,400.0,8.093e-05,2]
[420241112,1775848156849,400.0,8.093e-05,2]
[420241113,1775848157548,400.0,8.093e-05,2]
[420241114,1775848159042,400.0,8.093e-05,2]
[420241115,1775848159491,400.0,8.093e-05,2]
[420241116,1775848160030,400.0,8.093e-05,2]
[420241117,1775848160752,400.0,8.093e-05,2]
[420241118,1775848161439,400.0,8.093e-05,2]
[420241119,1775848162127,400.0,8.093e-05,2]
[420241120,1775848162845,400.0,8.093e-05,2]
[420241121,1775848163518,400.0,8.093e-05,2]
[420241122,1775848164242,400.0,8.093e-05,2]
[420241123,1775848164985,400.0,8.093e-05,2]
[420241124,1775848165637,400.0,8.093e-05,2]
[420241125,1775848166348,400.0,8.093e-05,2]
[420241126,1775848167019,400.0,8.093e-05,2]
[420241127,1775848167755,400.0,8.093e-05,2]
[420241128,1775848168427,400.0,8.093e-05,2]
[420241129,1775848169159,400.0,8.093e-05,2]
[420241130,1775848169859,400.0,8.093e-05,2]
[420241131,1775848170514,400.0,8.093e-05,2]
[420241132,1775848171237,400.0,8.093e-05,2]
[420241133,1775848171970,400.0,8.093e-05,2]
[420241134,1775848172740,400.0,8.093e-05,2]
[420241136,1775848202364,152.57,9e-05,2]
[420241183,1775848238641,-152.57,9.1e-05,2]
[420241184,1775848238652,-152.57,9.3e-05,2]
[420241185,1775848238664,-152.57,9.4e-05,2]
[420241186,1775848238676,-101.16689505,9.414e-05,2]
[420241195,1775848241289,-4898.83310495,9.414e-05,2]
[420241196,1775848241317,-300.0,9.508e-05,2]
[420241197,1775848241329,-152.57,9.6e-05,2]
[420241198,1775848241359,-152.57,9.7e-05,2]
[420241199,1775848241370,-152.57,9.9e-05,2]
[420241200,1775848241397,-1485.5257158,0.0001,2]
[420241201,1775848241408,-4181.1407894,0.0001,2]
[420241202,1775848241419,-291.59623892,0.0001,2]
[420241203,1775848241449,-300.0,0.00010459,2]
[420241204,1775848241461,-177.0,0.00011803,2]
[420241205,1775848241480,-362.56,0.00012329,2]
[420241206,1775848241489,-406.9,0.00013639,30]
[420241207,1775848241504,-406.9,0.00013639,30]
[420241208,1775848241514,-1725.06746381,0.00013671,2]
[420241209,1775848241527,-184.199665,0.00013699,2]
[420241210,1775848241536,-2242.9137244,0.00013699,2]
[420241211,1775848241558,-845.15329772,0.00013699,2]
[420241212,1775848241571,-154.84670228,0.00013699,2]
[420241213,1775848241588,-204.0,0.00013803,2]
[420241214,1775848241608,-151.0,0.00013835,2]
[420241215,1775848241618,-992.60577,0.00013859,2]
[420241216,1775848241644,-2125.51340546,0.00013899,2]
[420241217,1775848241655,-500.0,0.00013916,2]
[420241218,1775848241664,-500.0,0.00013916,2]
[420241219,1775848241674,-500.0,0.00013998,2]
[420241220,1775848241691,-500.0,0.00013998,2]
[420241221,1775848241704,-500.0,0.00013998,2]
[420241222,1775848241715,-500.0,0.00013998,2]
[420241223,1775848241730,-500.0,0.00013998,2]
[420241224,1775848241741,-500.0,0.00013998,2]
[420241225,1775848241751,-500.0,0.00013998,2]
[420241226,1775848241760,-500.0,0.00013998,2]
[420241227,1775848241781,-500.0,0.00013998,2]
[420241228,1775848241790,-500.0,0.00013998,2]
[420241229,1775848241799,-500.0,0.00013999,2]
[420241230,1775848241811,-500.0,0.00013999,2]
[420241231,1775848241835,-500.0,0.00013999,2]
[420241232,1775848241844,-500.0,0.00013999,2]
[420241233,1775848241861,-500.0,0.00013999,2]
[420241234,1775848241875,-1180.1,0.00013999,2]
[420241235,1775848241888,-515.54,0.00013999,2]
[420241236,1775848241897,-500.0,0.00013999,2]
[420241237,1775848241916,-500.0,0.00013999,2]
[420241238,1775848241928,-500.0,0.00013999,2]
[420241239,1775848241940,-500.0,0.00013999,2]
[420241240,1775848241952,-500.0,0.00013999,2]
[420241241,1775848241965,-500.0,0.00013999,2]
[420241242,1775848241978,-500.0,0.0001409,2]
[420241243,1775848241988,-500.0,0.0001409,2]
[420241244,1775848242002,-500.0,0.00014091,2]
[420241245,1775848242014,-500.0,0.00014091,2]
[420241246,1775848242029,-306.83,0.00014091,2]
[420241247,1775848242048,-500.0,0.00014091,2]
[420241248,1775848242066,-329.59,0.00014091,2]
[420241249,1775848242079,-406.12,0.00014091,2]
[420241250,1775848242095,-500.0,0.00014091,2]
[420241251,1775848242108,-500.0,0.00014091,2]
[420241252,1775848242118,-485.21,0.00014091,2]
[420241253,1775848242132,-500.0,0.00014091,2]
[420241254,1775848242147,-331.37,0.00014091,2]
[420241255,1775848242156,-500.0,0.00014091,2]
[420241256,1775848242166,-500.0,0.00014091,2]
[420241257,1775848242185,-420.23235869,0.00014091,2]
[420241258,1775848242195,-986.64,0.00014091,2]
[420241259,1775848242206,-500.0,0.00014091,2]
[420241260,1775848242220,-500.0,0.00014091,2]
[420241261,1775848242230,-500.0,0.00014091,2]
[420241262,1775848242241,-500.63274299,0.00014091,2]
[420241263,1775848242251,-255.4695619,0.00014091,2]
[420241264,1775848242267,-576.12,0.00014091,2]
[420241265,1775848242276,-500.0,0.00014091,2]
[420241266,1775848242286,-500.0,0.00014091,2]
[420241267,1775848242295,-613.83,0.00014091,2]
[420241268,1775848242312,-500.67666775,0.00014091,2]
[420241269,1775848242321,-500.0,0.00014091,2]
[420241270,1775848242331,-518.92920512,0.00014091,2]
[420241271,1775848242343,-508.91499492,0.00014091,2]
[420241272,1775848242352,-500.0,0.00014091,2]
[420241273,1775848242362,-500.0,0.00014091,2]
[420241274,1775848242376,-490.0,0.00014091,2]
[420241275,1775848242385,-500.55144716,0.00014091,2]
[420241276,1775848242394,-554.07893789,0.00014091,2]
[420241277,1775848242408,-627.02533029,0.00014091,2]
[420241278,1775848242417,-103.943407,0.00014091,2]
[420241279,1775848242429,-396.056593,0.00014091,2]
[420241280,1775848242439,-630.82204227,0.00014091,2]
[420241281,1775848242451,-500.0,0.00014091,2]
[420241282,1775848242461,-500.55424306,0.00014091,2]
[420241283,1775848242470,-500.0,0.00014091,2]
[420241284,1775848242484,-500.0,0.00014091,2]
[420241285,1775848242498,-500.0,0.00014091,2]
[420241286,1775848242510,-2279.44,0.00014091,2]
[420241287,1775848242519,-500.0,0.00014091,2]
[420241288,1775848242531,-2373.5495,0.00014091,2]
[420241289,1775848242542,-500.0,0.00014091,2]
[420241290,1775848242553,-500.0,0.00014091,2]
[420241291,1775848242568,-700.54,0.00014091,2]
[420241292,1775848242581,-500.0,0.00014091,2]
[420241293,1775848242594,-500.0,0.00014091,2]
[420241294,1775848242609,-1052.30293363,0.00014092,2]
[420241295,1775848242630,-500.0,0.00014092,2]
[420241296,1775848242640,-500.60891618,0.00014093,2]
[420241297,1775848242657,-500.0,0.00014093,2]
[420241298,1775848242673,-500.0,0.00014093,2]
[420241299,1775848242685,-500.0,0.00014093,2]
[420241300,1775848242698,-500.0,0.00014094,2]
[420241301,1775848242714,-3076.5622532,0.00014094,2]
[420241302,1775848242727,-1538.2811266,0.00014094,2]
[420241303,1775848242740,-396.74868977,0.00014094,2]
[420241304,1775848242753,-343.07870994,0.00014094,2]
[420241305,1775848242764,-1372.31483975,0.00014094,2]
[420241306,1775848242781,-3087.70838944,0.00014094,2]
[420241307,1775848242795,-500.0,0.00014094,2]
[420241308,1775848242807,-1672.31371801,0.00014095,2]
[420241327,1775848243838,-500.0,0.00014091,2]
[420241328,1775848243851,-14525.05903309,0.00014095,2]
[420241329,1775848243883,-1472.2280141,0.00014095,2]
[420241330,1775848243902,-855.26672185,0.00014175,2]
[420241331,1775848243956,-817.7814761,0.00014175,2]
[420241332,1775848244009,-500.0,0.0001419,2]
[420241333,1775848244035,-539.03490202,0.00014242,2]
[420241334,1775848244079,-1812.23431943,0.00014242,2]
[420241348,1775848249390,-5000.0,0.00013859,2]
[420241349,1775848249401,-500.0,0.00013998,2]
[420241350,1775848249411,-500.0,0.00013999,2]
[420241351,1775848249426,-343.90528864,0.00014242,2]
[420241361,1775848249583,-500.0,0.00014272,2]
[420241367,1775848249645,-500.0,0.00014272,2]
[420241369,1775848249654,-500.0,0.00014272,2]
[420241372,1775848249666,-500.0,0.00014272,2]
[420241374,1775848249682,-500.0,0.00014272,2]
[420241377,1775848249702,-500.0,0.00014272,2]
[420241379,1775848249718,-500.0,0.00014272,2]
[420241381,1775848249740,-500.0,0.00014272,2]
[420241383,1775848249755,-500.0,0.00014272,2]
[420241387,1775848249766,-500.0,0.00014272,2]
[420241390,1775848249779,-500.0,0.00014272,2]
[420241392,1775848249816,-500.0,0.00014272,2]
[420241394,1775848249827,-500.0,0.00014272,2]
[420241396,1775848249864,-315.46580713,0.00014272,2]
[420241398,1775848249921,-197.74453877,0.00014272,2]
[420241400,1775848250010,-500.0,0.00014272,2]
[420241402,1775848250027,-500.0,0.00014272,2]
[420241404,1775848250051,-219.76053584,0.00014272,2]
[420241406,1775848250061,-500.0,0.00014273,2]
[420241408,1775848250085,-500.0,0.00014273,2]
[420241410,1775848250096,-500.0,0.00014273,2]
[420241411,1775848250106,-500.0,0.00014273,2]
[420241412,1775848250140,-500.0,0.00014273,2]
[420241413,1775848250151,-1180.1,0.00014273,2]
[420241414,1775848250164,-515.54,0.00014273,2]
[420241415,1775848250186,-500.0,0.00014273,2]
[420241416,1775848250196,-500.0,0.00014273,2]
[420241417,1775848250208,-500.0,0.00014273,2]
[420241418,1775848250228,-500.0,0.00014273,2]
[420241419,1775848250258,-500.0,0.00014273,2]
[420241420,1775848250287,-267.72046635,0.00014274,2]
[420241421,1775848250298,-2012.67641435,0.00014275,2]
[420241422,1775848250320,-500.0,0.00014365,2]
[420241423,1775848250346,-500.0,0.00014365,2]
[420241424,1775848250357,-500.0,0.00014365,2]